bitfinex-derivatives/quotes_BNBF0:USTF0_20251203
["timestamp","ask_amount","ask_price","bid_price","bid_amount"]
[1764764621020,0.19263823,903.95,902.78,0.67106176]
[1764764621220,0.19263823,903.95,902.79,0.67106176]
[1764764621424,0.19263823,903.95,902.8,0.67106176]
[1764764621716,0.19263823,903.95,902.63,1.207]
[1764764621717,0.19263823,903.95,902.81,0.67106176]
[1764764621921,0.19263823,903.95,902.63,1.207]
[1764764621922,0.19263823,903.95,902.82,0.67106176]
[1764764622221,0.19263823,903.95,902.63,1.207]
[1764764622422,0.19263823,903.95,902.64,0.68305952]
[1764764622717,0.19263823,903.95,902.65,0.68305952]
[1764764622918,0.19263823,903.95,902.66,0.68305952]
[1764764623122,0.19263823,903.95,902.67,0.68305952]
[1764764623418,0.19263823,903.95,902.68,0.68305952]
[1764764623622,0.19263823,903.95,902.69,0.68305952]
[1764764623918,0.19263823,903.95,902.63,1.207]
[1764764624123,0.19263823,903.95,902.64,0.6832636]
[1764764624323,0.19263823,903.95,902.65,0.6832636]
[1764764624518,0.19263823,903.95,902.66,0.6832636]
[1764764624818,0.19263823,903.95,902.67,0.6832636]
[1764764625023,0.19263823,903.95,902.68,0.6832636]
[1764764625218,0.19263823,903.95,902.69,0.6832636]
[1764764625422,0.19263823,903.95,902.63,1.207]
[1764764625622,0.19263823,903.95,902.64,0.68347266]
[1764764625823,0.19263823,903.95,902.65,0.68347266]
[1764764626022,0.19263823,903.95,902.66,0.68347266]
[1764764626219,0.19263823,903.95,902.67,0.68347266]
[1764764626423,0.19263823,903.95,902.68,0.68347266]
[1764764626718,0.19263823,903.95,902.69,0.68347266]
[1764764626924,0.19263823,903.95,902.7,0.68347266]
[1764764627124,0.19263823,903.95,902.63,1.207]
[1764764627325,0.19263823,903.95,902.64,0.68359571]
[1764764627524,0.19263823,903.95,902.65,0.68359571]
[1764764627719,0.19263823,903.95,902.66,0.68359571]
[1764764627923,0.19263823,903.95,902.67,0.68359571]
[1764764628120,0.19263823,903.95,902.68,0.68359571]
[1764764628319,0.19263823,903.95,902.69,0.68359571]
[1764764628621,0.19263823,903.95,902.7,0.68359571]
[1764764628822,0.19263823,903.95,902.63,1.207]
[1764764630425,1.65962451,903.93,902.63,1.207]
[1764764631426,1.65962451,903.88,902.63,1.207]
[1764764632426,1.65962451,903.83,902.63,1.207]
[1764764632822,1.65962451,903.81,902.63,1.207]
[1764764633025,1.65962451,903.76,902.63,1.207]
[1764764633527,1.65962451,903.73,902.63,1.207]
[1764764634329,1.65962451,903.64,902.63,1.207]
[1764764635431,1.65962451,903.62,902.63,1.207]
[1764764636427,0.19263823,903.95,902.63,1.207]
[1764764636428,1.65962451,903.61,902.63,1.207]
[1764764636726,1.65962451,903.61,902.64,0.992]
[1764764637232,1.65962451,903.59,902.64,0.992]
[1764764638333,1.65962451,903.58,902.64,0.992]
[1764764639334,1.65962451,903.57,902.64,0.992]
[1764764640330,1.65962451,903.59,902.64,0.992]
[1764764640835,1.65962451,903.6,902.64,0.992]
[1764764641035,1.65962451,903.68,902.64,0.992]
[1764764642036,1.65962451,903.69,902.64,0.992]
[1764764642935,1.65962451,903.73,902.64,0.992]
[1764764643239,1.65962451,903.72,902.64,0.992]
[1764764643436,1.65962451,903.71,902.64,0.992]
[1764764645537,1.65962451,903.72,902.64,0.992]
[1764764646140,1.65962451,903.73,902.64,0.992]
[1764764646937,1.65962451,903.78,902.64,0.992]
[1764764647239,1.65962451,903.77,902.64,0.992]
[1764764647440,1.65962451,903.78,902.64,0.992]
[1764764648142,1.65962451,903.8,902.64,0.992]
[1764764649142,1.65962451,903.79,902.64,0.992]
[1764764649441,1.65962451,903.8,902.64,0.992]
[1764764650241,1.65962451,903.79,902.64,0.992]
[1764764650543,1.65962451,903.84,902.65,0.67988698]
[1764764650837,1.65962451,903.84,902.66,0.67988698]
[1764764651041,1.65962451,903.84,902.67,0.67988698]
[1764764651242,1.65962451,903.84,902.64,0.992]
[1764764651438,1.65962451,903.84,902.65,0.6799285]
[1764764651642,1.65962451,903.84,902.66,0.6799285]
[1764764651942,1.65962451,903.84,902.67,0.6799285]
[1764764652142,1.65962451,903.84,902.64,0.992]
[1764764652340,1.65962451,903.83,902.65,0.67997209]
[1764764652545,1.65962451,903.83,902.66,0.67997209]
[1764764652740,1.65962451,903.83,902.67,0.67997209]
[1764764652942,1.65962451,903.83,902.64,0.992]
[1764764653138,1.65962451,903.83,902.65,0.67997202]
[1764764653340,1.65962451,903.83,902.66,0.67997202]
[1764764653544,1.65962451,903.83,902.67,0.67997202]
[1764764653743,1.65962451,903.83,902.68,0.67997202]
[1764764653940,1.65962451,903.83,902.64,0.992]
[1764764654141,1.65962451,903.83,902.65,0.68001281]
[1764764654345,1.65962451,903.83,902.66,0.68001281]
[1764764654542,1.65962451,903.83,902.64,0.992]
[1764764654543,1.65962451,903.83,902.67,0.68001281]
[1764764654746,1.65962451,903.83,902.68,0.68001281]
[1764764655047,1.65962451,903.83,902.64,0.992]
[1764764655347,1.65962451,903.83,902.65,0.68005547]
[1764764655546,1.65962451,903.83,902.66,0.68005547]
[1764764655746,1.65962451,903.82,902.67,0.68005547]
[1764764655943,1.65962451,903.82,902.67,0.897]
[1764764656142,1.65962451,903.82,902.68,0.68016229]
[1764764656346,0.19263823,903.95,902.67,0.897]
[1764764656347,1.65962451,903.81,902.67,0.897]
[1764764656643,0.19266916,903.54,902.68,0.68016726]
[1764764656847,0.19266916,903.54,902.67,0.897]
[1764764657047,0.19266916,903.54,902.68,0.68016726]
[1764764657247,0.19266916,903.54,902.67,0.897]
[1764764657447,0.19266916,903.54,902.68,0.68021532]
[1764764657744,0.19266916,903.54,902.67,0.897]
[1764764658043,0.19266916,903.54,902.68,0.68023059]
[1764764658343,0.19266916,903.54,902.67,0.897]
[1764764658541,0.19266916,903.54,902.68,0.68028032]
[1764764658742,0.19266916,903.54,902.67,0.897]
[1764764658947,0.19266916,903.54,902.68,0.68028032]
[1764764659147,0.19266916,903.54,902.67,0.897]
[1764764659346,0.19266916,903.54,902.68,0.68028032]
[1764764659544,0.19266916,903.54,902.67,0.897]
[1764764659747,0.19266916,903.54,902.68,0.68029263]
[1764764659946,0.19266916,903.54,902.67,0.897]
[1764764660150,0.19266916,903.54,902.68,0.68029263]
[1764764660350,0.19266916,903.54,902.67,0.897]
[1764764660351,0.19266916,903.54,902.69,0.68029263]
[1764764660546,0.19266916,903.54,902.7,0.68029263]
[1764764660747,0.19266916,903.54,902.67,0.897]
[1764764660945,0.19266916,903.54,902.68,0.68034686]
[1764764661149,0.19266916,903.54,902.69,0.68034686]
[1764764661451,0.19266916,903.54,902.7,0.68034686]
[1764764661751,0.19266916,903.54,902.71,0.68036221]
[1764764661952,0.19266916,903.54,902.67,0.897]
[1764764662152,0.19266916,903.54,902.68,0.68036221]
[1764764662352,0.19266916,903.54,902.69,0.68036221]
[1764764662553,0.19266916,903.54,902.7,0.68036221]
[1764764662752,0.19266916,903.54,902.71,0.68036221]
[1764764663053,0.19266916,903.54,902.72,0.68036221]
[1764764663252,0.19266916,903.54,902.73,0.68036221]
[1764764663553,0.19266916,903.54,902.74,0.68036221]
[1764764663852,0.19266916,903.54,902.75,0.68036221]
[1764764664047,0.19266916,903.54,902.76,0.68036221]
[1764764664251,0.19266916,903.54,902.67,0.897]
[1764764664451,0.19266916,903.54,902.68,0.68037407]
[1764764664649,0.19266916,903.54,902.69,0.68037407]
[1764764664853,0.19266916,903.54,902.7,0.68037407]
[1764764665152,0.19266916,903.54,902.71,0.68037407]
[1764764665352,0.19266916,903.54,902.67,0.897]
[1764764665353,0.19266916,903.54,902.72,0.68037407]
[1764764665553,0.19266916,903.54,902.73,0.68037407]
[1764764665752,0.19266916,903.54,902.74,0.68037407]
[1764764665950,0.19266916,903.54,902.75,0.68037407]
[1764764666149,0.19266916,903.54,902.76,0.68037407]
[1764764666352,0.19266916,903.54,902.67,0.897]
[1764764666353,0.19266916,903.54,902.77,0.68050796]
[1764764666550,0.19266916,903.54,902.67,0.897]
[1764764666849,0.19266916,903.54,902.68,0.68050796]
[1764764667050,0.19266916,903.54,902.69,0.68050796]
[1764764667254,0.19266916,903.54,902.7,0.68050796]
[1764764667554,0.19266916,903.54,902.71,0.68050796]
[1764764667849,0.19266916,903.54,902.72,0.68050796]
[1764764668053,0.19266916,903.54,902.73,0.68050796]
[1764764668254,0.19266916,903.54,902.74,0.68050796]
[1764764668553,0.19266916,903.54,902.75,0.68050796]
[1764764668753,0.19266916,903.54,902.76,0.68050796]
[1764764668954,0.19266916,903.54,902.77,0.68050796]
[1764764669154,0.19266916,903.54,902.78,0.68050796]
[1764764669449,0.19266916,903.54,902.67,0.897]
[1764764669654,0.19266916,903.54,902.68,0.68076678]
[1764764669954,0.19266916,903.54,902.67,0.897]
[1764764669955,0.19266916,903.54,902.69,0.68076678]
[1764764670148,0.19266916,903.54,902.7,0.68076678]
[1764764670352,0.19266916,903.54,902.67,0.897]
[1764764670353,0.19266916,903.54,902.71,0.68076678]
[1764764670550,0.19266916,903.54,902.72,0.68076678]
[1764764670750,0.19266916,903.54,902.73,0.68076678]
[1764764670952,0.19266916,903.54,902.74,0.68076678]
[1764764671153,0.19266916,903.54,902.75,0.68076678]
[1764764671352,0.19266916,903.54,902.67,0.897]
[1764764671353,0.19266916,903.54,902.76,0.68076678]
[1764764671551,0.19266916,903.54,902.77,0.68076678]
[1764764671752,0.19266916,903.54,902.78,0.68076678]
[1764764671955,0.19266916,903.54,902.79,0.68076678]
[1764764672154,0.19266916,903.54,902.8,0.68076678]
[1764764672455,0.19266916,903.54,902.81,0.68076678]
[1764764672652,0.19266916,903.54,902.82,0.68076678]
[1764764672856,0.19266916,903.54,902.83,0.68076678]
[1764764673155,0.19266916,903.54,902.67,0.897]
[1764764673353,0.19266916,903.54,902.68,0.68116397]
[1764764673653,0.19266916,903.54,902.69,0.68116397]
[1764764673853,0.19266916,903.54,902.7,0.68116397]
[1764764674054,0.19266916,903.54,902.71,0.68116397]
[1764764674356,0.19266916,903.54,902.72,0.68116397]
[1764764674558,0.19266916,903.54,902.73,0.68116397]
[1764764674857,0.19266916,903.54,902.74,0.68116397]
[1764764675051,0.19266916,903.54,902.75,0.68116397]
[1764764675256,0.19266916,903.54,902.76,0.68116397]
[1764764675454,0.19266916,903.54,902.77,0.68116397]
[1764764675658,0.19266916,903.54,902.78,0.68116397]
[1764764675954,0.19266916,903.54,902.79,0.68116397]
[1764764676158,0.19266916,903.54,902.8,0.68116397]
[1764764676355,0.19266916,903.54,902.81,0.68116397]
[1764764676558,0.19266916,903.54,902.82,0.68116397]
[1764764676769,0.19266916,903.54,902.83,0.68116397]
[1764764676958,0.19266916,903.54,902.84,0.68116397]
[1764764677158,0.19266916,903.54,902.85,0.68116397]
[1764764677358,0.19266916,903.54,902.67,0.897]
[1764764677556,0.19266916,903.54,902.68,0.67813874]
[1764764677756,0.19266916,903.54,902.69,0.67813874]
[1764764677961,0.19266916,903.54,902.7,0.67813874]
[1764764678261,0.19266916,903.54,902.71,0.67813874]
[1764764678462,0.19266916,903.54,902.72,0.67813874]
[1764764678760,0.19266916,903.54,902.73,0.67813874]
[1764764678961,0.19266916,903.54,902.74,0.67813874]
[1764764679261,0.19266916,903.54,902.75,0.67813874]
[1764764679458,0.19266916,903.54,902.76,0.67813874]
[1764764679660,0.19266916,903.54,902.67,0.897]
[1764764679661,0.19266916,903.54,902.77,0.67813874]
[1764764679861,0.19266916,903.54,902.78,0.67813874]
[1764764680059,0.19266916,903.54,902.79,0.67813874]
[1764764680264,0.19266916,903.54,902.8,0.67813874]
[1764764680462,0.19266916,903.54,902.81,0.67813874]
[1764764680657,0.19266916,903.54,902.82,0.67813874]
[1764764680862,0.19266916,903.54,902.83,0.67813874]
[1764764681062,0.19266916,903.54,902.67,0.897]
[1764764681262,0.19266916,903.54,902.68,0.67822453]
[1764764681464,0.19266916,903.54,902.69,0.67822453]
[1764764681663,0.19266916,903.54,902.7,0.67822453]
[1764764681964,0.19266916,903.54,902.71,0.67822453]
[1764764682161,0.19266916,903.54,902.72,0.67822453]
[1764764682365,0.19266916,903.54,902.73,0.67822453]
[1764764682660,0.19266916,903.54,902.67,0.897]
[1764764682661,0.19266916,903.54,902.74,0.67822453]
[1764764682860,0.19266916,903.54,902.75,0.67822453]
[1764764683061,0.19266916,903.54,902.76,0.67822453]
[1764764683264,0.19266916,903.54,902.77,0.67822453]
[1764764683564,0.19266916,903.54,902.78,0.67822453]
[1764764683761,0.19266916,903.54,902.79,0.67822453]
[1764764683965,0.19266916,903.54,902.64,0.992]
[1764764683966,0.19266916,903.54,902.8,0.67822453]
[1764764684166,0.19266916,903.54,902.81,0.67822453]
[1764764684365,0.19266916,903.54,902.82,0.67822453]
[1764764684565,0.19266916,903.54,902.83,0.67822453]
[1764764684764,0.19266916,903.54,902.84,0.67822453]
[1764764684963,0.19266916,903.54,902.85,0.67822453]
[1764764685168,0.19266916,903.54,902.86,0.67822453]
[1764764685365,0.19266916,903.54,902.87,0.67822453]
[1764764685665,0.19266916,903.54,902.85,1.008]
[1764764690268,0.19266916,903.54,902.86,0.67872026]
[1764764690471,0.19266916,903.54,902.87,0.67872026]
[1764764690668,0.19266916,903.54,902.88,0.67872026]
[1764764690970,0.19266916,903.54,902.89,0.67872026]
[1764764691170,0.19266916,903.54,902.85,1.008]
[1764764691468,0.19266916,903.54,902.86,0.67862874]
[1764764691770,0.19266916,903.54,902.87,0.67862874]
[1764764691968,0.19266916,903.54,902.88,0.67862874]
[1764764692169,0.19266916,903.54,902.89,0.67862874]
[1764764692370,0.19266916,903.54,902.85,1.008]
[1764764692570,0.19266916,903.54,902.86,0.6786057]
[1764764692767,0.19266916,903.54,902.87,0.6786057]
[1764764692972,0.19266916,903.54,902.88,0.6786057]
[1764764693267,0.19266916,903.54,902.85,1.008]
[1764764693469,0.19266916,903.54,902.86,0.6786378]
[1764764693668,0.19266916,903.54,902.87,0.6786378]
[1764764693868,0.19266916,903.54,902.88,0.6786378]
[1764764694069,0.19266916,903.54,902.85,1.008]
[1764764694270,0.19266916,903.54,902.86,0.67868785]
[1764764694471,0.19266916,903.54,902.87,0.67868785]
[1764764694769,0.19266916,903.54,902.88,0.67868785]
[1764764694968,0.19266916,903.54,902.89,0.67868785]
[1764764695171,0.19266916,903.54,902.85,1.008]
[1764764695468,0.19266916,903.54,902.86,0.6788026]
[1764764695670,0.19266916,903.54,902.87,0.6788026]
[1764764695869,0.19266916,903.54,902.88,0.6788026]
[1764764696170,0.19266916,903.54,902.89,0.6788026]
[1764764696368,0.19266916,903.54,902.9,0.6788026]
[1764764696674,0.19266916,903.54,902.91,0.6788026]
[1764764696873,0.19266916,903.54,902.85,1.008]
[1764764697073,0.19266916,903.54,902.86,0.67905737]
[1764764697273,0.19266916,903.54,902.87,0.67905737]
[1764764697474,0.19266916,903.54,902.88,0.67905737]
[1764764697674,0.19266916,903.54,902.89,0.67905737]
[1764764697876,0.19266916,903.54,902.9,0.67905737]
[1764764698172,0.19266916,903.54,902.91,0.67905737]
[1764764698374,0.19266916,903.54,902.92,0.67905737]
[1764764698574,0.19266916,903.54,902.85,1.008]
[1764764698575,0.19266916,903.54,902.93,0.67905737]
[1764764698775,0.19266916,903.54,902.94,0.67905737]
[1764764698974,0.19266916,903.54,902.85,1.008]
[1764764699171,0.19266916,903.54,902.86,0.67938071]
[1764764699475,0.19266916,903.54,902.87,1.45238071]
[1764764699674,0.19266916,903.54,902.88,0.67938071]
[1764764699974,0.19266916,903.54,902.89,0.67938071]
[1764764700168,0.19266916,903.54,902.87,0.773]
[1764764700169,0.19266916,903.54,902.9,0.67938071]
[1764764700371,0.19266916,903.54,902.91,0.67938071]
[1764764700570,0.19266916,903.54,902.92,0.67938071]
[1764764700769,0.19266916,903.54,902.93,0.67938071]
[1764764700969,0.19266916,903.54,902.94,0.67938071]
[1764764701170,0.19266916,903.54,902.95,0.67938071]
[1764764701374,0.19266916,903.54,902.96,0.67938071]
[1764764701572,0.19266916,903.54,902.97,0.67938071]
[1764764701775,0.19266916,903.54,902.98,0.67938071]
[1764764702073,0.19266916,903.54,902.99,0.67938071]
[1764764702277,0.19266916,903.54,903.0,0.67938071]
[1764764702477,0.19266916,903.54,903.01,0.67938071]
[1764764702677,0.19266916,903.54,903.02,0.67938071]
[1764764702878,0.19266916,903.54,903.03,0.67938071]
[1764764703073,0.19266916,903.54,903.04,0.67938071]
[1764764703378,0.19266916,903.54,903.05,0.67938071]
[1764764703677,0.19266916,903.54,903.06,0.67938071]
[1764764703877,0.19266916,903.54,903.07,0.67938071]
[1764764704074,0.19266916,903.54,903.08,0.67938071]
[1764764704377,0.19266916,903.54,903.09,0.67938071]
[1764764704576,0.19266916,903.54,903.1,0.67938071]
[1764764704876,0.19266916,903.54,903.11,0.67938071]
[1764764705074,0.19266916,903.54,902.87,0.773]
[1764764705075,0.19266916,903.54,903.12,0.67938071]
[1764764705271,0.19266916,903.54,902.87,0.773]
[1764764705475,0.19266916,903.54,902.88,0.6818325]
[1764764705675,0.19266916,903.54,902.89,0.6818325]
[1764764705875,0.19266916,903.54,902.9,0.6818325]
[1764764706077,0.19266916,903.54,902.91,0.6818325]
[1764764706277,0.19266916,903.54,902.92,0.6818325]
[1764764706477,0.19266916,903.54,902.93,0.6818325]
[1764764706678,0.19266916,903.54,902.94,0.6818325]
[1764764706879,0.19266916,903.54,902.95,0.6818325]
[1764764707079,0.19266916,903.54,902.87,0.773]
[1764764707080,0.19266916,903.54,902.96,0.6818325]
[1764764707276,0.19266916,903.54,902.87,0.773]
[1764764707277,0.19266916,903.54,902.97,0.6818325]
[1764764707579,0.19266916,903.54,902.98,0.6818325]
[1764764707773,0.19266916,903.54,902.99,0.6818325]
[1764764707976,0.19266916,903.54,903.0,0.6818325]
[1764764708175,0.19266916,903.54,903.01,0.6818325]
[1764764708379,0.19266916,903.54,902.87,0.773]
[1764764708579,0.19266916,903.54,902.88,0.68211476]
[1764764708775,0.19266916,903.54,902.89,0.68211476]
[1764764708981,0.19266916,903.54,902.9,0.68211476]
[1764764709280,0.19266916,903.54,902.91,0.68211476]
[1764764709476,0.19266916,903.54,902.92,0.68211476]
[1764764709677,0.19266916,903.54,902.93,0.68211476]
[1764764709878,0.19266916,903.54,902.94,0.68211476]
[1764764710075,0.19266916,903.54,902.95,0.68211476]
[1764764710277,0.19266916,903.54,902.87,0.773]
[1764764710278,0.19266916,903.54,902.96,0.68211476]
[1764764710477,0.19266916,903.54,902.97,0.68211476]
[1764764710676,0.19266916,903.54,902.98,0.68211476]
[1764764710881,0.19266916,903.54,902.99,0.68211476]
[1764764711077,0.19266916,903.54,903.0,0.68211476]
[1764764711381,0.19266916,903.54,903.01,0.68211476]
[1764764711581,0.19266916,903.54,903.02,0.68211476]
[1764764711780,0.19266916,903.54,903.03,0.68211476]
[1764764712082,0.19266916,903.54,903.04,0.68211476]
[1764764712279,0.19266916,903.54,903.05,0.68211476]
[1764764712481,0.19266916,903.54,903.06,0.68211476]
[1764764712781,0.19266916,903.54,903.07,0.68211476]
[1764764712984,0.19266916,903.54,903.08,0.68211476]
[1764764713280,0.19266916,903.54,903.09,0.68211476]
[1764764713479,0.19266916,903.54,903.1,0.68211476]
[1764764713683,0.19266916,903.54,903.11,0.68211476]
[1764764713883,0.19266916,903.54,903.12,0.68211476]
[1764764714082,0.19266916,903.54,903.13,0.68211476]
[1764764714282,0.19266916,903.54,902.98,0.884]
[1764764714582,0.19266916,903.54,902.99,0.68190451]
[1764764714784,0.19266916,903.54,903.0,0.68190451]
[1764764714988,0.19266916,903.54,903.01,0.68190451]
[1764764715188,0.19266916,903.54,903.02,0.68190451]
[1764764715389,0.19266916,903.54,903.03,0.68190451]
[1764764715684,0.19266916,903.54,903.04,0.68190451]
[1764764715988,0.19266916,903.54,903.05,0.68190451]
[1764764716185,0.19266916,903.54,903.06,0.68190451]
[1764764716389,0.19266916,903.54,903.07,0.68190451]
[1764764716588,0.19266916,903.54,903.08,0.68190451]
[1764764716785,0.19266916,903.54,903.09,0.68190451]
[1764764717089,0.19266916,903.54,903.1,0.68190451]
[1764764717283,0.19266916,903.54,903.11,0.68190451]
[1764764717485,0.19266916,903.54,903.12,0.68190451]
[1764764717687,0.19266916,903.54,903.13,0.68190451]
[1764764717886,0.19266916,903.54,903.14,0.68190451]
[1764764718090,0.19266916,903.54,903.15,0.68190451]
[1764764718291,0.19266916,903.54,903.16,0.68190451]
[1764764718486,0.19266916,903.54,903.17,0.68190451]
[1764764718790,0.19266916,903.54,903.18,0.68190451]
[1764764718988,0.19266916,903.54,903.19,0.68190451]
[1764764719186,0.19266916,903.54,903.2,0.68190451]
[1764764719390,0.19266916,903.54,902.98,0.884]
[1764764719391,0.19266916,903.54,903.21,0.68190451]
[1764764719586,0.19266916,903.54,903.22,0.68190451]
[1764764719787,0.19266916,903.54,903.23,0.68109175]
[1764764719990,0.19266916,903.54,902.98,0.884]
[1764764720190,0.19266916,903.54,902.99,0.68109198]
[1764764720392,1.65962451,904.08,903.0,0.68109198]
[1764764720592,0.19258706,903.68,903.01,0.68109198]
[1764764720892,0.00914542,904.98,902.98,0.884]
[1764764720893,1.65962451,904.13,903.02,0.68109198]
[1764764721094,0.19258546,903.68,903.03,0.68109198]
[1764764721291,1.65962451,904.13,903.04,0.68109198]
[1764764721591,1.65962451,904.14,903.05,0.68109198]
[1764764721792,1.65962451,904.14,903.06,0.68109198]
[1764764721993,1.65962451,904.14,903.07,0.68109198]
[1764764722192,1.65962451,904.14,903.08,0.68109198]
[1764764722390,1.65962451,904.16,903.09,0.68109198]
[1764764722592,0.19258599,903.88,903.1,0.68109198]
[1764764722792,0.19258599,903.88,903.11,0.68109198]
[1764764722990,0.19258599,903.88,903.12,0.68109198]
[1764764723292,0.19258599,903.88,903.13,0.68109198]
[1764764723488,0.19258599,903.88,903.14,0.68109198]
[1764764723693,0.19258599,903.88,903.15,0.68109198]
[1764764723892,0.19258599,903.88,903.16,0.68109198]
[1764764724091,0.19258599,903.88,903.17,0.68109198]
[1764764724290,0.19258599,903.88,903.18,0.68109198]
[1764764724490,0.19258599,903.88,903.19,0.68109198]
[1764764724688,0.19258599,903.88,903.2,0.68109198]
[1764764724891,0.19258599,903.88,903.21,0.68109198]
[1764764725192,0.19258599,903.88,903.22,0.68109198]
[1764764725392,0.19258599,903.88,902.98,0.884]
[1764764725590,0.19258599,903.88,902.99,0.67999555]
[1764764725890,0.19258599,903.88,903.0,0.67999555]
[1764764726193,0.19258599,903.88,903.01,0.67999555]
[1764764726393,0.19258599,903.88,903.02,0.67999555]
[1764764726593,0.19258599,903.88,903.03,0.67999555]
[1764764726895,0.19258599,903.88,903.04,0.67999555]
[1764764727193,0.19258599,903.88,903.05,0.67999555]
[1764764727494,0.19258599,903.88,903.06,0.67999555]
[1764764727790,0.19258599,903.88,903.07,0.67999555]
[1764764727993,0.19258599,903.88,903.08,0.67999555]
[1764764728187,0.19258599,903.88,903.09,0.67999555]
[1764764728392,0.19258599,903.88,903.1,0.67999555]
[1764764728591,0.19258599,903.88,903.11,0.67999555]
[1764764728794,0.19258599,903.88,903.12,0.67999555]
[1764764728995,1.65962451,904.47,903.16,0.82102117]
[1764764729195,0.19254177,903.98,903.17,0.67999555]
[1764764729391,1.65962451,904.5,903.18,0.67999555]
[1764764729594,0.19252526,903.97,903.19,0.67999555]
[1764764729798,0.19252526,903.97,903.2,0.67999555]
[1764764730094,1.65962451,904.5,903.21,0.67999555]
[1764764730298,1.65962451,904.52,903.22,0.67999555]
[1764764730599,1.65962451,904.53,903.23,0.67999555]
[1764764730899,1.65962451,904.77,903.37,0.82102117]
[1764764731198,0.19249331,904.21,903.42,0.82102117]
[1764764731394,2.77801101,905.48,903.43,0.67999555]
[1764764731395,1.65962451,904.86,903.43,0.67999555]
[1764764731697,0.19246776,904.21,903.44,0.67999555]
[1764764731897,1.65962451,904.86,903.45,0.67999555]
[1764764732098,1.65962451,904.86,903.46,0.67999555]
[1764764732293,1.65962451,904.86,903.47,0.67999555]
[1764764732497,1.65962451,904.89,903.48,0.67999555]
[1764764732797,1.65962451,904.89,903.49,0.67999555]
[1764764733098,0.19246084,904.54,903.5,0.67999555]
[1764764733294,0.19246084,904.54,903.51,0.67999555]
[1764764733495,0.19246084,904.54,903.52,0.67999555]
[1764764733701,0.19246084,904.54,903.53,0.67999555]
[1764764733900,0.19246084,904.54,903.54,0.67999555]
[1764764734194,0.19246084,904.54,903.55,0.67999555]
[1764764734392,0.19246084,904.54,903.56,0.67999555]
[1764764734597,0.19246084,904.54,903.57,0.67999555]
[1764764734795,0.19246084,904.54,903.58,0.67999555]
[1764764734997,0.19246084,904.54,903.29,0.82102117]
[1764764735199,0.19246084,904.54,903.3,0.67784379]
[1764764735394,0.19246084,904.54,903.31,0.67784379]
[1764764735596,0.19246084,904.54,903.32,0.67784379]
[1764764735794,0.19246084,904.54,903.33,0.67784379]
[1764764735998,0.19246084,904.54,903.34,0.67784379]
[1764764736196,0.19246084,904.54,903.35,0.67784379]
[1764764736397,0.19246084,904.54,903.36,0.67784379]
[1764764736596,0.19246084,904.54,903.37,0.67784379]
[1764764736797,0.19246084,904.54,903.38,0.67784379]
[1764764737000,0.19246084,904.54,903.39,0.67784379]
[1764764737197,0.19246084,904.54,903.4,0.67784379]
[1764764737401,0.19246084,904.54,903.41,0.67784379]
[1764764737601,0.19246084,904.54,903.42,0.67784379]
[1764764737802,0.19246084,904.54,903.43,0.67784379]
[1764764738000,0.19246084,904.54,903.44,0.67784379]
[1764764738200,0.19246084,904.54,903.45,0.67784379]
[1764764738397,0.19246084,904.54,903.46,0.67784379]
[1764764738599,0.19246084,904.54,903.47,0.67784379]
[1764764738797,0.19246084,904.54,903.48,0.67784379]
[1764764739001,0.19246084,904.54,903.49,0.67784379]
[1764764739199,0.19246084,904.54,903.25,0.82102117]
[1764764739200,0.19246084,904.54,903.5,0.67784379]
[1764764739399,0.19246084,904.54,903.51,0.67784379]
[1764764739598,0.19246084,904.54,903.52,0.67784379]
[1764764739799,0.19246084,904.54,903.53,0.67784379]
[1764764740001,0.19246084,904.54,903.54,0.67784379]
[1764764740200,0.19246084,904.54,903.25,0.82102117]
[1764764740400,0.19246084,904.54,903.26,0.67630945]
[1764764740603,0.19246084,904.54,903.27,0.67630945]
[1764764740903,0.19246084,904.54,903.28,0.67630945]
[1764764741203,0.19246084,904.54,903.29,0.67630945]
[1764764741404,0.19246084,904.54,903.3,0.67630945]
[1764764741705,0.19246084,904.54,903.31,0.67630945]
[1764764742004,0.19246084,904.54,903.32,0.67630945]
[1764764742202,0.19246084,904.54,903.33,0.67630945]
[1764764742401,0.19246084,904.54,903.34,0.67630945]
[1764764742705,0.19246084,904.54,903.35,0.67630945]
[1764764742902,0.19246084,904.54,903.36,0.67630945]
[1764764743205,0.19246084,904.54,903.06,0.82102117]
[1764764743405,0.19246084,904.54,903.07,0.67613177]
[1764764743605,0.19246084,904.54,903.08,0.67613177]
[1764764743805,0.19246084,904.54,903.09,0.67613177]
[1764764744008,0.19246084,904.54,903.1,0.67613177]
[1764764744201,0.19246084,904.54,903.11,0.67613177]
[1764764744406,0.19246084,904.54,903.12,0.67613177]
[1764764744606,0.19246084,904.54,903.13,0.67613177]
[1764764744807,0.19246084,904.54,903.14,0.67613177]
[1764764745108,0.19246084,904.54,903.15,0.67613177]
[1764764745305,0.19246084,904.54,903.06,0.82102117]
[1764764745306,0.19246084,904.54,903.16,0.67613177]